[Event "Championnat d'Europe de Blitz"]
[Date "2024.12.09"]
[White "Nakonechnyi, Oleksii"]
[Black "Nevednichy, Vladislav"]
[WhiteElo "2052"]
[BlackElo "2451"]
[Round "4.52"]
[Result "1/2-1/2"]
[TimeControl "180+2"]

1. Nf3 {[%emt 00:00:04] [%clk 00:03:02]} Nf6 {[%clk 00:03:01]} 2. g3 {[%clk
00:03:03]} g6 {[%emt 00:00:02] [%clk 00:03:01]} 3. Bg2 {[%clk 00:03:05]} Bg7
{[%emt 00:00:01] [%clk 00:03:02]} 4. O-O {[%clk 00:03:05]} O-O {[%emt 00:00:01]
[%clk 00:03:03]} 5. c4 {[%emt 00:00:02] [%clk 00:03:05]} d6 {[%emt 00:00:03]
[%clk 00:03:02]} 6. Nc3 {[%emt 00:00:02] [%clk 00:03:05]} c6 {[%emt 00:00:09]
[%clk 00:02:56]} 7. b3 {[%emt 00:00:03] [%clk 00:03:04]} e5 {[%emt 00:00:02]
[%clk 00:02:56]} 8. Bb2 {[%emt 00:00:02] [%clk 00:03:04]} Na6 {[%emt 00:00:11]
[%clk 00:02:46]} 9. d4 {[%emt 00:00:04] [%clk 00:03:02]} e4 {[%emt 00:00:02]
[%clk 00:02:47]} 10. Nd2 {[%emt 00:00:01] [%clk 00:03:02]} d5 {[%clk 00:02:48]}
11. cxd5 {[%emt 00:00:05] [%clk 00:02:59]} cxd5 {[%clk 00:02:50]} 12. Rc1 {[%emt
00:00:01] [%clk 00:03:00]} h5 {[%emt 00:00:03] [%clk 00:02:48]} 13. e3 {[%emt
00:00:09] [%clk 00:02:54]} Nb4 {[%emt 00:00:03] [%clk 00:02:47]} 14. Ba3 {[%emt
00:00:10] [%clk 00:02:47]} Qa5 {[%emt 00:00:17] [%clk 00:02:31]} 15. Ndb1 {[%emt
00:00:24] [%clk 00:02:26]} Rd8 {[%emt 00:00:10] [%clk 00:02:23]} 16. Bxb4 {[%emt
00:00:15] [%clk 00:02:13]} Qxb4 {[%clk 00:02:24]} 17. Qd2 {[%clk 00:02:14]} Qe7
{[%emt 00:00:18] [%clk 00:02:07]} 18. Na4 {[%emt 00:00:17] [%clk 00:01:59]} h4
{[%emt 00:00:05] [%clk 00:02:05]} 19. Qa5 {[%emt 00:00:05] [%clk 00:01:57]} hxg3
{[%emt 00:00:10] [%clk 00:01:56]} 20. fxg3 {[%emt 00:00:34] [%clk 00:01:26]} Ng4
{[%emt 00:00:33] [%clk 00:01:25]} 21. Nb6 {[%emt 00:00:29] [%clk 00:00:59]} Rb8
{[%emt 00:00:13] [%clk 00:01:15]} 22. Nxd5 {[%emt 00:00:08] [%clk 00:00:53]}
Rxd5 {[%emt 00:00:09] [%clk 00:01:07]} 23. Qxd5 {[%emt 00:00:02] [%clk
00:00:53]} Nxe3 {[%emt 00:00:03] [%clk 00:01:06]} 24. Qxe4 {[%emt 00:00:05]
[%clk 00:00:50]} Qxe4 {[%emt 00:00:02] [%clk 00:01:07]} 25. Bxe4 {[%clk
00:00:51]} Nxf1 {[%emt 00:00:01] [%clk 00:01:07]} 26. Kxf1 {[%emt 00:00:02]
[%clk 00:00:51]} Bxd4 {[%emt 00:00:02] [%clk 00:01:07]} 27. Rd1 {[%emt 00:00:12]
[%clk 00:00:42]} Bb6 {[%emt 00:00:08] [%clk 00:01:01]} 28. Na3 {[%emt 00:00:04]
[%clk 00:00:40]} Bg4 {[%emt 00:00:03] [%clk 00:01:00]} 29. Rd3 {[%emt 00:00:11]
[%clk 00:00:30]} Bc5 {[%emt 00:00:10] [%clk 00:00:51]} 30. Nc4 {[%emt 00:00:04]
[%clk 00:00:30]} Bh3+ {[%emt 00:00:01] [%clk 00:00:52]} 31. Bg2 {[%emt 00:00:02]
[%clk 00:00:30]} Bf5 {[%emt 00:00:02] [%clk 00:00:51]} 32. Rd5 {[%emt 00:00:02]
[%clk 00:00:30]} b6 {[%emt 00:00:01] [%clk 00:00:52]} 33. Ke2 {[%emt 00:00:05]
[%clk 00:00:28]} Re8+ {[%emt 00:00:02] [%clk 00:00:51]} 34. Kd2 {[%emt 00:00:03]
[%clk 00:00:27]} Re7 {[%emt 00:00:08] [%clk 00:00:45]} 35. Re5 {[%emt 00:00:02]
[%clk 00:00:28]} Rd7+ {[%emt 00:00:02] [%clk 00:00:45]} 36. Rd5 {[%emt 00:00:01]
[%clk 00:00:29]} Rc7 {[%emt 00:00:02] [%clk 00:00:45]} 37. Rd8+ {[%emt 00:00:04]
[%clk 00:00:27]} Kg7 {[%clk 00:00:46]} 38. Bd5 {[%emt 00:00:01] [%clk 00:00:28]}
Be7 {[%emt 00:00:03] [%clk 00:00:45]} 39. Re8 {[%emt 00:00:03] [%clk 00:00:27]}
Rd7 {[%emt 00:00:01] [%clk 00:00:45]} 40. Ke2 {[%emt 00:00:07] [%clk 00:00:23]}
Bf6 {[%emt 00:00:14] [%clk 00:00:33]} 41. Be4 {[%emt 00:00:02] [%clk 00:00:23]}
Be6 {[%emt 00:00:04] [%clk 00:00:31]} 42. Ne3 {[%emt 00:00:04] [%clk 00:00:22]}
Bg5 {[%emt 00:00:05] [%clk 00:00:28]} 43. h4 {[%emt 00:00:03] [%clk 00:00:21]}
Bh6 {[%emt 00:00:02] [%clk 00:00:27]} 44. Bd3 {[%emt 00:00:07] [%clk 00:00:17]}
a5 {[%emt 00:00:04] [%clk 00:00:25]} 45. Bc4 {[%clk 00:00:18]} Bh3 {[%emt
00:00:07] [%clk 00:00:20]} 46. Re4 {[%emt 00:00:03] [%clk 00:00:17]} Rb7 {[%emt
00:00:07] [%clk 00:00:14]} 47. a4 {[%emt 00:00:02] [%clk 00:00:18]} Rd7 {[%emt
00:00:02] [%clk 00:00:15]} 48. Nd5 {[%emt 00:00:02] [%clk 00:00:18]} Bf5 {[%emt
00:00:03] [%clk 00:00:14]} 49. Re7 {[%clk 00:00:19]} Rxe7+ {[%emt 00:00:02]
[%clk 00:00:14]} 50. Nxe7 {[%clk 00:00:20]} Bc1 {[%emt 00:00:03] [%clk
00:00:13]} 51. Nd5 {[%emt 00:00:05] [%clk 00:00:17]} Ba3 {[%emt 00:00:02] [%clk
00:00:13]} 52. Nxb6 {[%emt 00:00:02] [%clk 00:00:18]} Bd6 {[%clk 00:00:14]} 53.
Kf3 {[%emt 00:00:02] [%clk 00:00:17]} Bc2 {[%clk 00:00:15]} 54. Nd5 {[%emt
00:00:02] [%clk 00:00:18]} f5 {[%emt 00:00:01] [%clk 00:00:16]} 55. Ne3 {[%clk
00:00:19]} Be4+ {[%clk 00:00:17]} 56. Kf2 {[%emt 00:00:01] [%clk 00:00:20]} Bc5
{[%clk 00:00:18]} 57. Ke2 {[%emt 00:00:02] [%clk 00:00:20]} Kf6 {[%clk
00:00:20]} 58. Nd5+ {[%clk 00:00:21]} Ke5 {[%emt 00:00:01] [%clk 00:00:21]} 59.
Nc3 {[%emt 00:00:01] [%clk 00:00:21]} Bc6 {[%emt 00:00:02] [%clk 00:00:21]} 60.
Bb5 {[%clk 00:00:23]} Bb7 {[%clk 00:00:23]} 61. Nd1 {[%clk 00:00:24]} Kd4 {[%emt
00:00:02] [%clk 00:00:22]} 62. Bc4 {[%emt 00:00:02] [%clk 00:00:24]} Be4 {[%emt
00:00:01] [%clk 00:00:23]} 63. Nf2 {[%emt 00:00:02] [%clk 00:00:24]} Bg2 {[%emt
00:00:02] [%clk 00:00:24]} 64. Bf7 {[%emt 00:00:02] [%clk 00:00:24]} Kc3 {[%emt
00:00:02] [%clk 00:00:24]} 65. Bxg6 {[%emt 00:00:02] [%clk 00:00:24]} Kxb3
{[%clk 00:00:25]} 66. Bxf5 {[%emt 00:00:02] [%clk 00:00:25]} Kxa4 {[%clk
00:00:28]} 67. Nd3 {[%emt 00:00:02] [%clk 00:00:26]} Bd4 {[%emt 00:00:02] [%clk
00:00:28]} 68. g4 {[%emt 00:00:02] [%clk 00:00:27]} Bd5 {[%emt 00:00:01] [%clk
00:00:28]} 69. g5 {[%emt 00:00:02] [%clk 00:00:27]} Kb3 {[%emt 00:00:02] [%clk
00:00:28]} 70. Nf4 {[%emt 00:00:05] [%clk 00:00:24]} Bc4+ {[%emt 00:00:02] [%clk
00:00:29]} 71. Bd3 {[%clk 00:00:26]} Bg8 {[%emt 00:00:02] [%clk 00:00:29]} 72.
h5 {[%emt 00:00:01] [%clk 00:00:26]} a4 {[%clk 00:00:30]} 73. Bb1 {[%emt
00:00:16] [%clk 00:00:13]} Kb2 {[%emt 00:00:03] [%clk 00:00:29]} 74. Be4 {[%emt
00:00:03] [%clk 00:00:12]} a3 {[%emt 00:00:02] [%clk 00:00:29]} 75. Nd3+ {[%emt
00:00:02] [%clk 00:00:13]} Kc3 {[%emt 00:00:05] [%clk 00:00:25]} 76. Nc1 {[%clk
00:00:15]} Bc4+ {[%emt 00:00:03] [%clk 00:00:24]} 77. Kd1 {[%clk 00:00:16]} Be3
{[%emt 00:00:05] [%clk 00:00:21]} 78. Ne2+ {[%emt 00:00:12] [%clk 00:00:06]}
Bxe2+ {[%emt 00:00:03] [%clk 00:00:20]} 79. Kxe2 {[%clk 00:00:07]} a2 {[%emt
00:00:01] [%clk 00:00:22]} 80. Kxe3 {[%clk 00:00:08]} a1=Q {[%clk 00:00:23]} 81.
Kf4 {[%emt 00:00:01] [%clk 00:00:09]} Kd4 {[%emt 00:00:01] [%clk 00:00:24]} 82.
h6 {[%clk 00:00:10]} Qf1 {[%emt 00:00:01] [%clk 00:00:24]} 83. Kg4 {[%emt
00:00:02] [%clk 00:00:11]} Qd1 {[%emt 00:00:02] [%clk 00:00:22]} 84. Bf3 {[%emt
00:00:03]} Qg1 {[%clk 00:00:23]} 85. Kf5 {[%clk 00:00:14]} Qb1+ {[%emt 00:00:03]
[%clk 00:00:22]} 86. Kf6 {[%clk 00:00:14]} Qf1 {[%emt 00:00:03] [%clk 00:00:21]}
87. Kg7 {[%emt 00:00:02] [%clk 00:00:14]} Qxf3 {[%emt 00:00:01] [%clk 00:00:22]}
88. h7 {[%clk 00:00:16]} Qb7+ {[%clk 00:00:22]} 89. Kg8 {[%emt 00:00:01] [%clk
00:00:17]} Qc8+ {[%emt 00:00:01] [%clk 00:00:23]} 90. Kg7 {[%clk 00:00:19]} Qd7+
{[%clk 00:00:25]} 91. Kg8 {[%clk 00:00:20]} Qd8+ {[%emt 00:00:02] [%clk
00:00:26]} 92. Kg7 {[%clk 00:00:21]} Qxg5+ {[%clk 00:00:27]} 93. Kf8 {[%emt
00:00:02] [%clk 00:00:22]} Qh6+ {[%emt 00:00:04] [%clk 00:00:25]} 94. Kg8 {[%clk
00:00:23]} Qg6+ {[%emt 00:00:07] [%clk 00:00:19]} 95. Kh8 {[%emt 00:00:02] [%clk
00:00:23]} Qe8+ {[%emt 00:00:08] [%clk 00:00:14]} 96. Kg7 {[%clk 00:00:24]} Qe7+
{[%clk 00:00:16]} 97. Kg8 {[%clk 00:00:25]} Qe6+ {[%clk 00:00:17]} 98. Kg7
{[%clk 00:00:26]} Qg4+ {[%emt 00:00:01] [%clk 00:00:18]} 99. Kf8 {[%emt
00:00:03] [%clk 00:00:26]} Qf5+ {[%emt 00:00:01] [%clk 00:00:18]} 100. Kg8
{[%clk 00:00:27]} Qe6+ {[%emt 00:00:02] [%clk 00:00:18]} 101. Kg7 {[%emt
00:00:02] [%clk 00:00:28]} Ke5 {[%emt 00:00:01] [%clk 00:00:18]} 102. h8=Q
{[%emt 00:00:02]} Qf6+ {[%clk 00:00:19]} 103. Kg8 {[%clk 00:00:29]} Qxh8+ {[%emt
00:00:03]} 104. Kxh8 {[%clk 00:00:30]} 1/2-1/2

[Site "Europe Echecs"]

[Event "Championnat d'Europe de Blitz"]
[Date "2024.12.09"]
[White "Gatineau, Yovann"]
[Black "Sutbas, Batuhan"]
[WhiteElo "2363"]
[BlackElo "1885"]
[Round "4.53"]
[Result "1-0"]
[TimeControl "180+2"]

1. d4 {[%clk 00:03:03]} d5 {[%emt 00:00:01] [%clk 00:03:04]} 2. Bf4 {[%emt
00:00:03] [%clk 00:03:04]} Nf6 {[%clk 00:03:04]} 3. e3 {[%clk 00:03:05]} c5
{[%emt 00:00:03] [%clk 00:03:02]} 4. Nc3 {[%emt 00:00:02] [%clk 00:03:05]} a6
{[%emt 00:00:01] [%clk 00:03:03]} 5. dxc5 {[%emt 00:00:02] [%clk 00:03:06]} Nc6
{[%emt 00:00:08] [%clk 00:02:56]} 6. Nf3 {[%emt 00:00:02] [%clk 00:03:06]} Bg4
{[%emt 00:00:10] [%clk 00:02:48]} 7. Be2 {[%emt 00:00:16] [%clk 00:02:52]} Bxf3
{[%emt 00:00:02] [%clk 00:02:48]} 8. Bxf3 {[%emt 00:00:02] [%clk 00:02:53]} e5
{[%emt 00:00:02] [%clk 00:02:48]} 9. Bg5 {[%emt 00:00:02] [%clk 00:02:52]} e4
{[%emt 00:00:03] [%clk 00:02:47]} 10. Bxf6 {[%emt 00:00:19] [%clk 00:02:35]}
gxf6 {[%emt 00:00:22] [%clk 00:02:27]} 11. Bh5 {[%emt 00:00:09] [%clk 00:02:29]}
Ne7 {[%emt 00:00:47] [%clk 00:01:42]} 12. Qd4 {[%emt 00:00:07] [%clk 00:02:23]}
Bg7 {[%emt 00:00:18] [%clk 00:01:26]} 13. O-O-O {[%emt 00:00:03] [%clk
00:02:22]} O-O {[%emt 00:00:07] [%clk 00:01:21]} 14. Nxd5 {[%emt 00:00:05] [%clk
00:02:20]} Nxd5 {[%emt 00:00:03] [%clk 00:01:20]} 15. Qxd5 {[%clk 00:02:20]} Qa5
{[%emt 00:00:03] [%clk 00:01:20]} 16. c6 {[%emt 00:00:37] [%clk 00:01:44]} Qxd5
{[%emt 00:00:19] [%clk 00:01:03]} 17. Rxd5 {[%clk 00:01:45]} bxc6 {[%emt
00:00:01] [%clk 00:01:04]} 18. Rd7 {[%clk 00:01:46]} f5 {[%emt 00:00:13] [%clk
00:00:53]} 19. Rhd1 {[%emt 00:00:03] [%clk 00:01:46]} Rab8 {[%emt 00:00:12]
[%clk 00:00:42]} 20. c3 {[%emt 00:00:02] [%clk 00:01:46]} a5 {[%emt 00:00:11]
[%clk 00:00:33]} 21. Rc7 {[%emt 00:00:03] [%clk 00:01:44]} Be5 {[%emt 00:00:06]
[%clk 00:00:31]} 22. Rxc6 {[%emt 00:00:04] [%clk 00:01:42]} a4 {[%emt 00:00:01]
[%clk 00:00:31]} 23. a3 {[%emt 00:00:03] [%clk 00:01:42]} Rb7 {[%emt 00:00:12]}
24. Rd5 {[%clk 00:01:35]} Bxh2 {[%emt 00:00:03] [%clk 00:00:28]} 25. g3 {[%emt
00:00:08] [%clk 00:01:29]} Rfb8 {[%emt 00:00:08] [%clk 00:00:23]} 26. Rd2 {[%emt
00:00:09] [%clk 00:01:22]} Kg7 {[%emt 00:00:01] [%clk 00:00:23]} 27. Bd1 {[%emt
00:00:08] [%clk 00:01:16]} Ra7 {[%emt 00:00:12] [%clk 00:00:14]} 28. Rc4 {[%emt
00:00:08] [%clk 00:01:10]} Rba8 {[%clk 00:00:14]} 29. Rd5 {[%emt 00:00:05] [%clk
00:01:07]} Kg6 {[%emt 00:00:03] [%clk 00:00:14]} 30. Rcc5 {[%emt 00:00:04] [%clk
00:01:04]} Bg1 {[%emt 00:00:08] [%clk 00:00:09]} 31. Rxf5 {[%emt 00:00:03] [%clk
00:01:04]} Rd7 {[%emt 00:00:03] [%clk 00:00:09]} 32. Bc2 {[%emt 00:00:09] [%clk
00:00:55]} Rc8 {[%emt 00:00:07] [%clk 00:00:04]} 33. Rg5+ {[%emt 00:00:10] [%clk
00:00:46]} Kh6 {[%emt 00:00:02] [%clk 00:00:06]} 34. Rh5+ {[%emt 00:00:03] [%clk
00:00:44]} Kg6 {[%emt 00:00:03] [%clk 00:00:05]} 35. Bxe4+ {[%emt 00:00:02]
[%clk 00:00:44]} 1-0

[Site "Europe Echecs"]

[Event "Championnat d'Europe de Blitz"]
[Date "2024.12.09"]
[White "Triadu Cassa, Jordi"]
[Black "Kilic, Eray"]
[WhiteElo "2108"]
[BlackElo "2459"]
[Round "4.54"]
[Result "0-1"]
[TimeControl "180+2"]

1. e4 {[%emt 00:00:02] [%clk 00:03:02]} Nf6 {[%emt 00:00:03] [%clk 00:03:03]} 2.
e5 {[%clk 00:03:03]} Nd5 {[%clk 00:03:04]} 3. c4 {[%clk 00:03:05]} Nb6 {[%clk
00:03:05]} 4. c5 {[%emt 00:00:01] [%clk 00:03:06]} Nd5 {[%emt 00:00:02] [%clk
00:03:05]} 5. Bc4 {[%emt 00:00:01] [%clk 00:03:07]} e6 {[%emt 00:00:02] [%clk
00:03:04]} 6. d4 {[%emt 00:00:02] [%clk 00:03:08]} d6 {[%emt 00:00:02] [%clk
00:03:04]} 7. cxd6 {[%emt 00:00:07] [%clk 00:03:02]} cxd6 {[%emt 00:00:01] [%clk
00:03:04]} 8. Nf3 {[%emt 00:00:13] [%clk 00:02:52]} Nc6 {[%emt 00:00:05] [%clk
00:03:01]} 9. O-O {[%emt 00:00:05] [%clk 00:02:49]} Be7 {[%emt 00:00:05] [%clk
00:02:58]} 10. Qe2 {[%emt 00:00:01] [%clk 00:02:49]} O-O {[%emt 00:00:05] [%clk
00:02:55]} 11. Rd1 {[%emt 00:00:01] [%clk 00:02:50]} Nb6 {[%emt 00:00:17] [%clk
00:02:40]} 12. Bb3 {[%emt 00:00:15] [%clk 00:02:37]} Bd7 {[%emt 00:00:10] [%clk
00:02:32]} 13. Nc3 {[%emt 00:00:03] [%clk 00:02:37]} Rc8 {[%emt 00:00:03] [%clk
00:02:31]} 14. Bf4 {[%emt 00:00:14] [%clk 00:02:25]} d5 {[%emt 00:00:02] [%clk
00:02:30]} 15. Rac1 {[%emt 00:00:14] [%clk 00:02:13]} a6 {[%emt 00:00:33] [%clk
00:02:00]} 16. Bc2 {[%emt 00:00:08] [%clk 00:02:08]} Nc4 {[%emt 00:00:08] [%clk
00:01:53]} 17. Bb1 {[%emt 00:00:21] [%clk 00:01:48]} Qb6 {[%emt 00:00:12] [%clk
00:01:43]} 18. Bg5 {[%emt 00:00:31] [%clk 00:01:20]} Qxb2 {[%emt 00:00:30] [%clk
00:01:15]} 19. Rc2 {[%emt 00:00:28] [%clk 00:00:54]} Qb4 {[%emt 00:00:09] [%clk
00:01:08]} 20. Bxe7 {[%emt 00:00:19] [%clk 00:00:36]} Qxe7 {[%emt 00:00:02]
[%clk 00:01:08]} 21. Rcc1 {[%emt 00:00:13] [%clk 00:00:26]} Na3 {[%emt 00:00:02]
[%clk 00:01:07]} 22. Bd3 {[%emt 00:00:02] [%clk 00:00:27]} Nb4 {[%emt 00:00:02]
[%clk 00:01:07]} 23. h4 {[%emt 00:00:04] [%clk 00:00:25]} Nxd3 {[%emt 00:00:04]
[%clk 00:01:05]} 24. Rxd3 {[%clk 00:00:26]} Bb5 {[%emt 00:00:04] [%clk
00:01:03]} 25. Ng5 {[%emt 00:00:16] [%clk 00:00:12]} h6 {[%emt 00:00:01] [%clk
00:01:03]} 26. Qg4 {[%emt 00:00:05] [%clk 00:00:09]} Bxd3 {[%emt 00:00:04] [%clk
00:01:01]} 27. Re1 {[%emt 00:00:03] [%clk 00:00:08]} Rxc3 {[%emt 00:00:04] [%clk
00:00:59]} 28. Re3 {[%clk 00:00:10]} Bf5 {[%emt 00:00:02] [%clk 00:00:58]} 0-1

[Site "Europe Echecs"]

[Event "Championnat d'Europe de Blitz"]
[Date "2024.12.09"]
[White "Quparadze, Giga"]
[Black "Korobov, Anton"]
[WhiteElo "2537"]
[BlackElo "2629"]
[Round "5.1"]
[Result "1/2-1/2"]
[TimeControl "180+2"]

1. e4 {[%clk 00:03:03]} c5 {[%clk 00:03:03]} 2. Nf3 {[%clk 00:03:04]} d6 {[%clk
00:03:04]} 3. d4 {[%clk 00:03:06]} cxd4 {[%clk 00:03:05]} 4. Nxd4 {[%clk
00:03:07]} Nf6 {[%emt 00:00:02] [%clk 00:03:06]} 5. Nc3 {[%emt 00:00:01] [%clk
00:03:07]} a6 {[%emt 00:00:02] [%clk 00:03:07]} 6. g3 {[%clk 00:03:08]} e6
{[%emt 00:00:02] [%clk 00:03:07]} 7. Bg2 {[%emt 00:00:01] [%clk 00:03:09]} Be7
{[%emt 00:00:01] [%clk 00:03:08]} 8. O-O {[%emt 00:00:02] [%clk 00:03:09]} Qc7
{[%emt 00:00:02] [%clk 00:03:08]} 9. a4 {[%emt 00:00:02] [%clk 00:03:09]} Nc6
{[%emt 00:00:01] [%clk 00:03:09]} 10. h3 {[%emt 00:00:08] [%clk 00:03:04]} O-O
{[%emt 00:00:06] [%clk 00:03:05]} 11. g4 {[%emt 00:00:02] [%clk 00:03:04]} Nxd4
{[%emt 00:00:06] [%clk 00:03:01]} 12. Qxd4 {[%emt 00:00:02] [%clk 00:03:04]} e5
{[%emt 00:00:02] [%clk 00:03:01]} 13. Qd3 {[%emt 00:00:03] [%clk 00:03:02]} Be6
{[%emt 00:00:02] [%clk 00:03:01]} 14. Nd5 {[%emt 00:00:02] [%clk 00:03:03]} Nxd5
{[%emt 00:00:20] [%clk 00:02:43]} 15. exd5 {[%emt 00:00:01] [%clk 00:03:03]} Bd7
{[%emt 00:00:01] [%clk 00:02:45]} 16. f4 {[%emt 00:00:23] [%clk 00:02:42]} Rac8
{[%emt 00:00:35] [%clk 00:02:12]} 17. Be4 {[%emt 00:00:11] [%clk 00:02:32]} h6
{[%emt 00:00:20] [%clk 00:01:54]} 18. f5 {[%emt 00:00:07] [%clk 00:02:27]} Qc4
{[%emt 00:00:12] [%clk 00:01:45]} 19. b3 {[%emt 00:00:08] [%clk 00:02:20]} Qxd3
{[%emt 00:00:11] [%clk 00:01:36]} 20. Bxd3 {[%emt 00:00:02] [%clk 00:02:21]} Bf6
{[%emt 00:00:12] [%clk 00:01:26]} 21. Ra2 {[%emt 00:00:05] [%clk 00:02:18]} Rc3
{[%emt 00:00:17] [%clk 00:01:11]} 22. Bd2 {[%emt 00:00:06] [%clk 00:02:14]} Rfc8
{[%emt 00:00:01] [%clk 00:01:12]} 23. Bxc3 {[%emt 00:00:06] [%clk 00:02:10]}
Rxc3 {[%emt 00:00:01] [%clk 00:01:12]} 24. Kg2 {[%emt 00:00:02] [%clk 00:02:10]}
Kf8 {[%emt 00:00:12] [%clk 00:01:03]} 25. Rf3 {[%emt 00:00:02] [%clk 00:02:09]}
Rc5 {[%emt 00:00:13] [%clk 00:00:52]} 26. c4 {[%emt 00:00:02] [%clk 00:02:09]}
a5 {[%emt 00:00:01] [%clk 00:00:53]} 27. Be4 {[%emt 00:00:04] [%clk 00:02:07]}
Bg5 {[%emt 00:00:03] [%clk 00:00:52]} 28. Rc3 {[%emt 00:00:03] [%clk 00:02:06]}
Ke7 {[%emt 00:00:02] [%clk 00:00:52]} 29. Kf2 {[%emt 00:00:03] [%clk 00:02:05]}
Kd8 {[%emt 00:00:12] [%clk 00:00:42]} 30. Ke2 {[%emt 00:00:06] [%clk 00:02:01]}
Kc7 {[%emt 00:00:01] [%clk 00:00:43]} 31. Rb2 {[%emt 00:00:02] [%clk 00:02:00]}
Bd8 {[%emt 00:00:09] [%clk 00:00:37]} 32. Rb1 {[%emt 00:00:02] [%clk 00:02:00]}
Kb6 {[%emt 00:00:05] [%clk 00:00:34]} 33. Rh1 {[%emt 00:00:03] [%clk 00:01:58]}
Bh4 {[%emt 00:00:02] [%clk 00:00:34]} 34. Rf3 {[%emt 00:00:07]} Rc7 {[%clk
00:00:33]} 35. Kd3 {[%emt 00:00:06] [%clk 00:01:53]} Kc5 {[%emt 00:00:01] [%clk
00:00:33]} 36. Kc3 {[%emt 00:00:02] [%clk 00:01:53]} Rc8 {[%emt 00:00:04] [%clk
00:00:31]} 37. Rhf1 {[%emt 00:00:01] [%clk 00:01:54]} Bf6 {[%emt 00:00:10] [%clk
00:00:24]} 38. Rh1 {[%emt 00:00:07] [%clk 00:01:48]} Bh4 {[%emt 00:00:02] [%clk
00:00:25]} 39. Rb1 {[%emt 00:00:08] [%clk 00:01:42]} Ra8 {[%emt 00:00:02] [%clk
00:00:24]} 40. Rbf1 {[%emt 00:00:04] [%clk 00:01:40]} Bf6 {[%emt 00:00:03] [%clk
00:00:24]} 41. Rh1 {[%emt 00:00:04] [%clk 00:01:37]} Bh4 {[%emt 00:00:01] [%clk
00:00:26]} 1/2-1/2

[Site "Europe Echecs"]